[Event "Czech Open-E Teams 2022"]
[Site "Pardubice"]
[Date "2022.07.17"]
[Round "6.44"]
[White "Krouzel, Jaroslav"]
[Black "Sladek, Vladislav"]
[Result "1/2-1/2"]
[ECO "D02"]
[WhiteElo "2145"]
[BlackElo "1919"]
[Annotator "TA"]
[PlyCount "26"]
[EventDate "2022.07.14"]
[EventType "team-tourn"]
[EventCountry "CZE"]
[SourceTitle "playchess.com"]
[Source "ChessBase"]
[SourceQuality "1"]
[TimeControl "5400+30"]

{[%evp 9,26,0,-5,-8,-5,-16,-16,-23,-12,-9,0,-11,-19,-19,-19,-21,-18,-64,-58]} 1. d4 {[%emt 0:02:17]} d5 {[%emt 0:00:07]} 2. Nf3 {[%emt 0:00:08]} Nf6 {[%emt 0:00:09]} 3. Bf4 {[%emt 0:00:18]} c5 {[%emt 0:00:11]} 4. e3 {[%emt 0:00:09]} Nc6 {[%emt 0:00:07]} 5. c3 {[%emt 0:00:57]} Qb6 {[%emt 0:00:18]} 6. b3 {[%emt 0:00:30] D02: 1 d4 d5 2 Nf3 sidelines, including 2...Nf6 3 g3 and 2...Nf6 3 Bf4.} Bg4 {[%emt 0:01:07]} 7. Be2 {[%emt 0:03:23]} e6 {[%emt 0:00:33]} 8. Nbd2 {[%emt 0:01:30] The position is equal.} Rc8 {[%emt 0:02:34]} 9. O-O {[%emt 0:09:19]} Be7 {[%emt 0:00:32] [#]} 10. a4 $146 {[%emt 0:02:45]} ({Predecessor:} 10. Ne5 Bf5 11. Rc1 h6 12. Bd3 Bxd3 13. Nxd3 cxd4 14. cxd4 O-O 15. Nc5 Rfd8 16. a3 {0-1 (68) Pfeffer,R (2172)-Nogly,C (2274) Germany 2006}) 10... O-O {[%emt 0:02:06]} 11. a5 {[%emt 0:07:47]} Qd8 {[%emt 0:03:59]} ({Don't do} 11... Nxa5 12. dxc5 Qd8 13. b4 $16) 12. a6 {[%emt 0:00:10]} b6 {[%emt 0:01:09]} 13. Rc1 {[%emt 0:01:52]} (13. Ne5 $11 Bxe2 14. Qxe2) 13... Nh5 {[%emt 0:05:09] Weighted Error Value: White=0.10 (very precise) /Black=0.03 (flawless)} 1/2-1/2

[Event "Czech Open-E Teams 2022"]
[Site "Pardubice"]
[Date "2022.07.17"]
[Round "7.1"]
[White "Sramek, Vojtech"]
[Black "Vykouk, Jan"]
[Result "0-1"]
[ECO "B90"]
[WhiteElo "2249"]
[BlackElo "2476"]
[Annotator "ChessBase"]
[PlyCount "94"]
[EventDate "2022.07.14"]
[EventType "team-tourn"]
[EventCountry "CZE"]
[SourceTitle "playchess.com"]
[Source "ChessBase"]
[SourceQuality "1"]
[TimeControl "5400+30"]

1. e4 {[%emt 0:00:05]} c5 {[%emt 0:00:06]} 2. Nf3 {[%emt 0:00:07]} d6 {[%emt 0:00:13]} 3. d4 {[%emt 0:00:07]} cxd4 {[%emt 0:00:05]} 4. Nxd4 {[%emt 0:00:05]} Nf6 {[%emt 0:00:05]} 5. Nc3 {[%emt 0:00:07]} a6 {[%emt 0:00:04]} 6. Bd3 {[%emt 0:01:06]} g6 {[%emt 0:04:33]} 7. f3 {[%emt 0:07:28]} Bg7 {[%emt 0:00:07]} 8. Be3 {[%emt 0:00:19]} Nc6 {[%emt 0:00:08]} 9. Qd2 {[%emt 0:01:04]} O-O {[%emt 0:00:26]} 10. O-O-O {[%emt 0:00:20]} d5 {[%emt 0:05:07]} 11. h4 {[%emt 0:04:41]} Ne5 {[%emt 0:09:51]} 12. Bh6 {[%emt 0:24:38]} Nxd3+ {[%emt 0:03:56]} 13. cxd3 {[%emt 0:00:19]} e5 {[%emt 0:00:08]} 14. Nf5 {[%emt 0:13:37]} Bxf5 {[%emt 0:01:08]} 15. exf5 {[%emt 0:00:32]} d4 {[%emt 0:00:24]} 16. Ne4 {[%emt 0:03:55]} Qc8+ {[%emt 0:00:05]} 17. Kb1 {[%emt 0:00:10]} Qxf5 {[%emt 0:00:25]} 18. h5 {[%emt 0:04:26]} Nxe4 {[%emt 0:04:00]} 19. fxe4 {[%emt 0:01:47]} Bxh6 {[%emt 0:00:35]} 20. Qxh6 {[%emt 0:01:06]} Qf4 {[%emt 0:02:02]} 21. Qxf4 {[%emt 0:02:43]} exf4 {[%emt 0:00:06]} 22. Rdf1 {[%emt 0:04:59]} g5 {[%emt 0:00:44]} 23. g3 {[%emt 0:01:35]} fxg3 {[%emt 0:01:34]} 24. Rhg1 {[%emt 0:00:20]} Kg7 {[%emt 0:03:14]} 25. Rxg3 {[%emt 0:00:48]} f6 {[%emt 0:00:40]} 26. Rf5 {[%emt 0:02:50]} Rae8 {[%emt 0:06:25]} 27. Rd5 {[%emt 0:02:10]} Rd8 {[%emt 0:00:06]} 28. Rf5 {[%emt 0:03:30]} Rc8 {[%emt 0:09:28]} 29. a3 {[%emt 0:01:54]} Kh6 {[%emt 0:05:42]} 30. Rh3 {[%emt 0:02:08]} Rce8 {[%emt 0:00:51]} 31. Rd5 {[%emt 0:00:48]} Rd8 {[%emt 0:00:13]} 32. Rf5 {[%emt 0:00:22]} Rd6 {[%emt 0:00:26]} 33. Rh2 {[%emt 0:06:48]} Re8 {[%emt 0:00:30]} 34. Rc5 {[%emt 0:00:41]} Re7 {[%emt 0:01:12]} 35. Rc4 {[%emt 0:01:27]} b6 {[%emt 0:04:04]} 36. Ka2 {[%emt 0:00:16]} g4 {[%emt 0:00:52]} 37. Rcc2 {[%emt 0:02:09]} Re5 {[%emt 0:01:56]} 38. Rh4 {[%emt 0:02:12]} Kg5 {[%emt 0:00:52]} 39. Rh1 {[%emt 0:00:12]} f5 {[%emt 0:03:57]} 40. exf5 {[%emt 0:00:39]} Rxf5 {[%emt 0:00:17]} 41. Rg1 {[%emt 0:02:05]} Rf3 {[%emt 0:03:20]} 42. Rc7 {[%emt 0:00:42]} h6 {[%emt 0:10:50]} 43. Rg7+ {[%emt 0:00:16]} Kxh5 {[%emt 0:01:56]} 44. R7xg4 {[%emt 0:00:19]} Rxd3 {[%emt 0:00:41]} 45. R4g2 {[%emt 0:01:16]} Rh3 {[%emt 0:00:10]} 46. Kb1 {[%emt 0:02:13]} d3 {[%emt 0:02:56]} 47. Kc1 {[%emt 0:00:30]} Rd5 {[%emt 0:00:58]} 0-1

[Event "Czech Open-E Teams 2022"]
[Site "Pardubice"]
[Date "2022.07.17"]
[Round "7.2"]
[White "Simacek, Pavel"]
[Black "Kostka, Vit"]
[Result "1/2-1/2"]
[ECO "D35"]
[WhiteElo "2458"]
[BlackElo "2168"]
[Annotator "ChessBase"]
[PlyCount "115"]
[EventDate "2022.07.14"]
[EventType "team-tourn"]
[EventCountry "CZE"]
[SourceTitle "playchess.com"]
[Source "ChessBase"]
[SourceQuality "1"]
[TimeControl "5400+30"]

1. d4 {[%emt 0:00:16]} d5 {[%emt 0:00:20]} 2. c4 {[%emt 0:00:24]} e6 {[%emt 0:01:08]} 3. Nc3 {[%emt 0:00:16]} Nf6 {[%emt 0:00:19]} 4. cxd5 {[%emt 0:00:34]} exd5 {[%emt 0:00:36]} 5. Bg5 {[%emt 0:00:14]} c6 {[%emt 0:03:11]} 6. e3 {[%emt 0:00:25]} Be7 {[%emt 0:00:19]} 7. Bd3 {[%emt 0:00:13]} h6 {[%emt 0:00:33]} 8. Bh4 {[%emt 0:00:33]} Be6 {[%emt 0:01:29]} 9. Nge2 {[%emt 0:03:17]} Nbd7 {[%emt 0:06:46]} 10. f3 {[%emt 0:03:43]} g5 {[%emt 0:04:09]} 11. Bf2 {[%emt 0:10:41]} Qc7 {[%emt 0:12:06]} 12. Qa4 {[%emt 0:03:32]} a6 {[%emt 0:08:14]} 13. Rc1 {[%emt 0:11:13]} Bd6 {[%emt 0:09:26]} 14. e4 Nb6 15. Qa5 {[%emt 0:05:18]} dxe4 {[%emt 0:04:17]} 16. Nxe4 Nbd5 {[%emt 0:01:03]} 17. Nxd6+ {[%emt 0:04:25]} Qxd6 {[%emt 0:00:12]} 18. a3 {[%emt 0:00:30]} Nh5 {[%emt 0:05:57]} 19. O-O {[%emt 0:07:13]} Nhf4 {[%emt 0:01:47]} 20. Rfd1 {[%emt 0:01:01]} Nxe2+ {[%emt 0:13:06]} 21. Bxe2 {[%emt 0:00:07]} Nf4 {[%emt 0:01:00]} 22. Bf1 {[%emt 0:00:43]} Bd5 {[%emt 0:02:00]} 23. Re1+ {[%emt 0:07:19]} Kf8 {[%emt 0:02:20]} 24. Re5 {[%emt 0:02:55]} f6 {[%emt 0:06:33]} 25. Be1 {[%emt 0:07:42]} b6 {[%emt 0:02:53]} 26. Qxb6 {[%emt 0:00:34]} Rb8 {[%emt 0:00:47]} 27. Bb4 {[%emt 0:13:04]} Qxb4 {[%emt 0:02:10]} 28. Qxb4+ {[%emt 0:00:11]} Rxb4 {[%emt 0:00:05]} 29. Rxd5 {[%emt 0:00:04]} Nxd5 {[%emt 0:00:37]} 30. axb4 {[%emt 0:00:04]} Nxb4 {[%emt 0:00:21]} 31. Rc4 {[%emt 0:00:05]} a5 {[%emt 0:00:23]} 32. Rc5 {[%emt 0:00:04]} Ke7 {[%emt 0:01:12]} 33. Rxa5 {[%emt 0:00:06]} Rd8 {[%emt 0:01:55]} 34. Ra7+ {[%emt 0:00:17]} Rd7 {[%emt 0:01:47]} 35. Rxd7+ {[%emt 0:16:09]} Kxd7 {[%emt 0:00:05]} 36. Kf2 {[%emt 0:00:12]} Nc2 {[%emt 0:01:28]} 37. f4 {[%emt 0:00:20]} Nxd4 {[%emt 0:01:24]} 38. fxg5 {[%emt 0:00:04]} hxg5 {[%emt 0:01:46]} 39. Ke3 {[%emt 0:00:16]} Nf5+ {[%emt 0:01:00]} 40. Ke4 {[%emt 0:00:39]} Ne7 {[%emt 0:01:57]} 41. g3 {[%emt 0:00:40]} Kd6 {[%emt 0:00:17]} 42. Bh3 {[%emt 0:00:25]} Nd5 {[%emt 0:00:26]} 43. Bf1 {[%emt 0:02:31]} f5+ {[%emt 0:00:48]} 44. Kd3 {[%emt 0:00:11]} Nb4+ {[%emt 0:02:06]} 45. Kc4 {[%emt 0:00:50]} Nd5 {[%emt 0:00:35]} 46. Bd3 {[%emt 0:01:14]} Nb6+ {[%emt 0:00:55]} 47. Kb4 {[%emt 0:00:14]} Nd5+ {[%emt 0:00:07]} 48. Kc4 {[%emt 0:00:04]} Nb6+ {[%emt 0:00:04]} 49. Kb4 {[%emt 0:00:03]} Nd5+ {[%emt 0:00:04]} 50. Kb3 {[%emt 0:01:20]} f4 {[%emt 0:00:23]} 51. gxf4 {[%emt 0:00:34]} Nxf4 {[%emt 0:00:06]} 52. Be4 {[%emt 0:00:13]} Ne6 {[%emt 0:00:35]} 53. Kc4 {[%emt 0:00:11]} Nc5 {[%emt 0:00:25]} 54. Bf5 {[%emt 0:00:13]} Na4 {[%emt 0:00:16]} 55. b3 {[%emt 0:01:10]} Nc5 {[%emt 0:00:36]} 56. b4 {[%emt 0:01:27]} Na6 {[%emt 0:00:11]} 57. Bg4 {[%emt 0:00:20]} Nc7 {[%emt 0:00:15]} 58. Bf3 {[%emt 0:00:17]} 1/2-1/2

[Event "Czech Open-E Teams 2022"]
[Site "Pardubice"]
[Date "2022.07.17"]
[Round "7.3"]
[White "Lojek, Marek"]
[Black "Kraus, Tomas"]
[Result "0-1"]
[ECO "B12"]
[WhiteElo "2142"]
[BlackElo "2488"]
[Annotator "ChessBase"]
[PlyCount "88"]
[EventDate "2022.07.14"]
[EventType "team-tourn"]
[EventCountry "CZE"]
[SourceTitle "playchess.com"]
[Source "ChessBase"]
[SourceQuality "1"]
[TimeControl "5400+30"]

1. e4 {[%emt 0:00:04]} c6 {[%emt 0:00:05]} 2. d4 {[%emt 0:00:24]} d5 {[%emt 0:00:09]} 3. e5 {[%emt 0:01:31]} c5 {[%emt 0:00:07]} 4. dxc5 {[%emt 0:01:56]} e6 {[%emt 0:01:05]} 5. Be3 {[%emt 0:01:47]} Nd7 {[%emt 0:01:14]} 6. Bb5 {[%emt 0:02:10]} Ne7 {[%emt 0:00:12]} 7. f4 {[%emt 0:02:29]} Qa5+ {[%emt 0:13:52]} 8. Nc3 {[%emt 0:00:16]} a6 9. Bxd7+ {[%emt 0:11:42]} Bxd7 {[%emt 0:03:36]} 10. a3 {[%emt 0:00:44]} Nf5 {[%emt 0:01:37]} 11. b4 {[%emt 0:01:00]} Nxe3 {[%emt 0:01:19]} 12. Qe2 {[%emt 0:00:29]} Nxg2+ {[%emt 0:17:22]} 13. Qxg2 {[%emt 0:00:19]} Qc7 {[%emt 0:00:02]} 14. Nge2 {[%emt 0:03:47]} b6 {[%emt 0:01:02]} 15. cxb6 {[%emt 0:02:33]} Qxb6 {[%emt 0:00:07]} 16. Qf2 {[%emt 0:07:47]} Qxf2+ {[%emt 0:01:05]} 17. Kxf2 {[%emt 0:00:02]} Rc8 {[%emt 0:00:43]} 18. Ke3 {[%emt 0:04:12]} Be7 {[%emt 0:05:45]} 19. Rhg1 {[%emt 0:06:24]} g6 {[%emt 0:07:44]} 20. Kd3 {[%emt 0:01:49]} O-O {[%emt 0:01:57]} 21. Nd4 {[%emt 0:01:40]} Rc4 {[%emt 0:02:43]} 22. Nce2 {[%emt 0:01:28]} Rfc8 {[%emt 0:01:17]} 23. c3 {[%emt 0:00:52]} Ba4 24. Rg3 {[%emt 0:10:56]} Kf8 {[%emt 0:05:04]} 25. Kd2 {[%emt 0:03:15]} Bd8 {[%emt 0:00:55]} 26. Ra2 {[%emt 0:06:03]} Bb6 {[%emt 0:01:14]} 27. Rd3 Ba7 28. Nf3 {[%emt 0:03:52]} Re4 {[%emt 0:10:12]} 29. Ng5 {[%emt 0:05:09]} Rxe2+ {[%emt 0:01:19]} 30. Kxe2 {[%emt 0:00:05]} Bb5 {[%emt 0:00:03]} 31. a4 {[%emt 0:01:56]} Bxd3+ {[%emt 0:00:05]} 32. Kxd3 {[%emt 0:00:04]} Rc4 {[%emt 0:00:50]} 33. Nxh7+ {[%emt 0:03:18]} Ke7 {[%emt 0:01:41]} 34. b5 {[%emt 0:07:35]} a5 {[%emt 0:00:51]} 35. b6 {[%emt 0:00:14]} Bxb6 {[%emt 0:00:30]} 36. Rb2 {[%emt 0:00:05]} Bc7 {[%emt 0:03:22]} 37. Rb7 {[%emt 0:01:37]} Kd7 {[%emt 0:02:57]} 38. Nf6+ {[%emt 0:01:30]} Kc8 {[%emt 0:01:13]} 39. Rb5 {[%emt 0:02:19]} Rxf4 {[%emt 0:01:17]} 40. Ne8 {[%emt 0:01:59]} Bxe5 {[%emt 0:01:51]} 41. Rxa5 {[%emt 0:00:09]} Kd7 {[%emt 0:01:46]} 42. Ra8 {[%emt 0:00:52]} Rf3+ {[%emt 0:01:06]} 43. Ke2 {[%emt 0:00:49]} Rxc3 {[%emt 0:00:15]} 44. a5 {[%emt 0:00:17]} Rc8 {[%emt 0:00:19]} 0-1

[Event "Czech Open-E Teams 2022"]
[Site "Pardubice"]
[Date "2022.07.17"]
[Round "7.4"]
[White "Studnicka, Tomas"]
[Black "Husek, Martin"]
[Result "0-1"]
[ECO "A46"]
[WhiteElo "2316"]
[BlackElo "2132"]
[Annotator "ChessBase"]
[PlyCount "72"]
[EventDate "2022.07.14"]
[EventType "team-tourn"]
[EventCountry "CZE"]
[SourceTitle "playchess.com"]
[Source "ChessBase"]
[SourceQuality "1"]
[TimeControl "5400+30"]

1. d4 {[%emt 0:00:03]} Nf6 {[%emt 0:00:08]} 2. Nf3 {[%emt 0:00:02]} e6 {[%emt 0:00:29]} 3. Bf4 {[%emt 0:00:09]} d5 {[%emt 0:00:09]} 4. e3 {[%emt 0:00:04]} c5 {[%emt 0:00:35]} 5. c3 {[%emt 0:00:06]} Nc6 {[%emt 0:00:06]} 6. Nbd2 {[%emt 0:00:09]} cxd4 {[%emt 0:01:42]} 7. exd4 {[%emt 0:01:29]} Nh5 {[%emt 0:00:14]} 8. Be3 {[%emt 0:00:12]} Bd6 {[%emt 0:00:15]} 9. Ne5 {[%emt 0:01:37]} g6 {[%emt 0:00:33]} 10. Nd3 {[%emt 0:01:21]} Qc7 {[%emt 0:05:03]} 11. g3 {[%emt 0:04:44]} f6 {[%emt 0:10:34]} 12. Bg2 {[%emt 0:07:27]} Ng7 {[%emt 0:02:06]} 13. O-O {[%emt 0:04:23]} Nf5 {[%emt 0:02:16]} 14. Bf4 {[%emt 0:05:52]} e5 {[%emt 0:02:36]} 15. dxe5 {[%emt 0:00:04]} fxe5 {[%emt 0:00:23]} 16. Re1 {[%emt 0:00:37]} Nfe7 {[%emt 0:01:31]} 17. Bh6 {[%emt 0:10:07]} Bf5 {[%emt 0:25:55]} 18. Qe2 {[%emt 0:04:21]} O-O-O {[%emt 0:02:40]} 19. a3 {[%emt 0:05:25]} e4 {[%emt 0:11:14]} 20. Nb4 {[%emt 0:00:56]} Ne5 {[%emt 0:11:36]} 21. Bf4 {[%emt 0:05:54]} a5 {[%emt 0:05:35]} 22. Bxe5 {[%emt 0:02:54]} Bxe5 {[%emt 0:00:06]} 23. Nc2 {[%emt 0:02:20]} h5 {[%emt 0:00:41]} 24. Nd4 {[%emt 0:21:51]} h4 {[%emt 0:01:11]} 25. Nb5 {[%emt 0:00:52]} Qb6 {[%emt 0:00:49]} 26. Kf1 {[%emt 0:03:34]} hxg3 {[%emt 0:01:05]} 27. hxg3 {[%emt 0:00:03]} Bd7 {[%emt 0:00:35]} 28. c4 {[%emt 0:00:50]} Bxb5 {[%emt 0:01:52]} 29. cxb5 {[%emt 0:00:06]} Nf5 {[%emt 0:02:04]} 30. Qg4 {[%emt 0:05:18]} Kb8 {[%emt 0:00:14]} 31. a4 {[%emt 0:00:53]} Nxg3+ {[%emt 0:01:36]} 32. fxg3 {[%emt 0:00:23]} Rdf8+ {[%emt 0:00:13]} 33. Bf3 {[%emt 0:00:41]} Bxb2 {[%emt 0:00:26]} 34. Rad1 {[%emt 0:03:00]} Rh2 {[%emt 0:03:30]} 35. Nxe4 {[%emt 0:05:11]} dxe4 {[%emt 0:00:39]} 36. Rxe4 {[%emt 0:00:03]} Qf2# 0-1

[Event "Czech Open-E Teams 2022"]
[Site "Pardubice"]
[Date "2022.07.17"]
[Round "7.5"]
[White "Polak, Tomas"]
[Black "Cukrowski, Filip"]
[Result "0-1"]
[ECO "D38"]
[WhiteElo "2512"]
[BlackElo "2378"]
[Annotator "ChessBase"]
[PlyCount "93"]
[EventDate "2022.07.14"]
[EventType "team-tourn"]
[EventCountry "CZE"]
[SourceTitle "playchess.com"]
[Source "ChessBase"]
[SourceQuality "1"]
[TimeControl "5400+30"]

1. d4 {[%emt 0:00:08]} Nf6 {[%emt 0:01:38]} 2. c4 {[%emt 0:00:11]} e6 {[%emt 0:00:10]} 3. Nf3 {[%emt 0:00:56]} d5 {[%emt 0:00:07]} 4. Nc3 {[%emt 0:00:15]} Bb4 {[%emt 0:00:10]} 5. Bg5 {[%emt 0:01:12]} h6 {[%emt 0:00:05]} 6. Bxf6 {[%emt 0:00:39]} Qxf6 {[%emt 0:00:06]} 7. g3 {[%emt 0:00:46]} dxc4 {[%emt 0:00:10]} 8. Bg2 {[%emt 0:00:18]} Nc6 {[%emt 0:01:14]} 9. O-O {[%emt 0:00:36]} O-O {[%emt 0:00:11]} 10. e3 {[%emt 0:02:16]} Rb8 {[%emt 0:00:50]} 11. Nd2 {[%emt 0:13:16]} Na5 {[%emt 0:05:54]} 12. Qa4 {[%emt 0:08:07]} Qe7 {[%emt 0:01:10]} 13. a3 {[%emt 0:01:37]} Bxc3 {[%emt 0:00:04]} 14. bxc3 {[%emt 0:00:04]} b6 {[%emt 0:00:13]} 15. Nxc4 {[%emt 0:00:40]} Bd7 {[%emt 0:00:30]} 16. Qb4 {[%emt 0:00:29]} Qxb4 {[%emt 0:00:26]} 17. axb4 {[%emt 0:00:06]} Nxc4 {[%emt 0:00:06]} 18. Rxa7 {[%emt 0:00:05]} Nd6 {[%emt 0:02:14]} 19. Rxc7 {[%emt 0:00:50]} Bb5 {[%emt 0:00:05]} 20. Ra1 {[%emt 0:11:33]} Rfc8 {[%emt 0:03:46]} 21. Raa7 {[%emt 0:02:59]} Rxc7 {[%emt 0:00:07]} 22. Rxc7 {[%emt 0:00:04]} Rc8 {[%emt 0:00:09]} 23. Rxc8+ {[%emt 0:00:13]} Nxc8 {[%emt 0:00:01]} 24. f4 {[%emt 0:02:46]} Nd6 {[%emt 0:00:29]} 25. Kf2 {[%emt 0:00:17]} Bc4 {[%emt 0:03:30]} 26. Ke1 {[%emt 0:00:26]} Bd5 {[%emt 0:00:57]} 27. Bf1 {[%emt 0:00:10]} f5 {[%emt 0:03:21]} 28. Be2 {[%emt 0:01:14]} g5 {[%emt 0:02:15]} 29. fxg5 {[%emt 0:02:24]} hxg5 {[%emt 0:00:01]} 30. h4 {[%emt 0:00:21]} gxh4 {[%emt 0:07:20]} 31. gxh4 {[%emt 0:00:50]} b5 {[%emt 0:00:01]} 32. Bd3 {[%emt 0:06:14]} Kg7 {[%emt 0:00:22]} 33. Kf2 {[%emt 0:00:21]} Ne4+ {[%emt 0:00:52]} 34. Bxe4 {[%emt 0:00:16]} Bxe4 {[%emt 0:00:06]} 35. Kg3 {[%emt 0:00:16]} Kh6 {[%emt 0:00:27]} 36. Kf4 {[%emt 0:00:14]} Kh5 {[%emt 0:00:22]} 37. Kg3 {[%emt 0:00:11]} Bd3 {[%emt 0:11:46]} 38. Kh3 {[%emt 0:00:49]} f4 {[%emt 0:03:06]} 39. exf4 {[%emt 0:00:28]} Be4 {[%emt 0:00:46]} 40. Kg3 {[%emt 0:15:14]} Bf5 {[%emt 0:00:04]} 41. Kf3 {[%emt 0:00:33]} Kxh4 {[%emt 0:00:05]} 42. Ke3 {[%emt 0:00:17]} Kg4 {[%emt 0:00:11]} 43. c4 bxc4 {[%emt 0:00:04]} 44. b5 {[%emt 0:01:34]} c3 {[%emt 0:00:04]} 45. d5 exd5 {[%emt 0:00:05]} 46. b6 {[%emt 0:01:02]} Bc8 {[%emt 0:00:08]} 47. Kd4 0-1

[Event "Czech Open-E Teams 2022"]
[Site "Pardubice"]
[Date "2022.07.17"]
[Round "7.6"]
[White "Butkiewicz, Lukasz"]
[Black "Nemec, Jachym"]
[Result "1/2-1/2"]
[ECO "B33"]
[WhiteElo "2370"]
[BlackElo "2357"]
[Annotator "ChessBase"]
[PlyCount "51"]
[EventDate "2022.07.14"]
[EventType "team-tourn"]
[EventCountry "CZE"]
[SourceTitle "playchess.com"]
[Source "ChessBase"]
[SourceQuality "1"]
[TimeControl "5400+30"]

1. e4 {[%emt 0:00:09]} c5 {[%emt 0:00:05]} 2. Nf3 {[%emt 0:00:19]} Nc6 {[%emt 0:00:04]} 3. d4 {[%emt 0:00:46]} cxd4 {[%emt 0:00:06]} 4. Nxd4 {[%emt 0:00:16]} Nf6 {[%emt 0:00:04]} 5. Nc3 {[%emt 0:00:32]} e5 {[%emt 0:00:08]} 6. Ndb5 {[%emt 0:00:40]} d6 {[%emt 0:00:06]} 7. Bg5 {[%emt 0:00:06]} a6 {[%emt 0:00:04]} 8. Na3 {[%emt 0:00:06]} b5 {[%emt 0:00:04]} 9. Nd5 {[%emt 0:00:52]} Be7 {[%emt 0:00:05]} 10. Bxf6 {[%emt 0:00:08]} Bxf6 {[%emt 0:00:05]} 11. c4 {[%emt 0:00:08]} b4 {[%emt 0:00:06]} 12. Nc2 {[%emt 0:00:39]} a5 {[%emt 0:00:04]} 13. g3 {[%emt 0:01:37]} h5 {[%emt 0:00:12]} 14. h4 {[%emt 0:05:19]} g6 {[%emt 0:00:12]} 15. Bg2 {[%emt 0:02:59]} Bg7 {[%emt 0:00:36]} 16. Qd3 {[%emt 0:04:40]} O-O {[%emt 0:01:00]} 17. O-O {[%emt 0:04:14]} Rb8 {[%emt 0:01:15]} 18. Rad1 {[%emt 0:03:45]} Re8 {[%emt 0:00:57]} 19. b3 {[%emt 0:03:13]} Bb7 {[%emt 0:01:00]} 20. Qe2 {[%emt 0:03:24]} Ba8 {[%emt 0:03:46]} 21. Rd3 {[%emt 0:03:52]} a4 {[%emt 0:08:37]} 22. Rfd1 {[%emt 0:03:34]} Qa5 {[%emt 0:02:44]} 23. Qd2 {[%emt 0:02:04]} Kh8 {[%emt 0:15:55]} 24. Bf3 {[%emt 0:04:20]} Kg8 {[%emt 0:09:37]} 25. Kg2 {[%emt 0:00:58]} Nd4 {[%emt 0:05:13]} 26. Nxd4 {[%emt 0:04:35]} 1/2-1/2

[Event "Czech Open-E Teams 2022"]
[Site "Pardubice"]
[Date "2022.07.17"]
[Round "7.7"]
[White "Kusa, Jakub"]
[Black "Kulon, Klaudia"]
[Result "1-0"]
[ECO "E92"]
[WhiteElo "2353"]
[BlackElo "2286"]
[Annotator "ChessBase"]
[PlyCount "68"]
[EventDate "2022.07.14"]
[EventType "team-tourn"]
[EventCountry "CZE"]
[SourceTitle "playchess.com"]
[Source "ChessBase"]
[SourceQuality "1"]
[TimeControl "5400+30"]

1. d4 {[%emt 0:00:05]} Nf6 {[%emt 0:00:18]} 2. Nf3 {[%emt 0:00:24]} g6 {[%emt 0:00:16]} 3. c4 {[%emt 0:00:56]} Bg7 {[%emt 0:00:04]} 4. Nc3 {[%emt 0:00:20]} O-O {[%emt 0:00:10]} 5. e4 {[%emt 0:00:31]} d6 {[%emt 0:00:04]} 6. Be2 {[%emt 0:01:11]} e5 {[%emt 0:00:32]} 7. Be3 {[%emt 0:00:37]} exd4 {[%emt 0:01:57]} 8. Nxd4 {[%emt 0:00:42]} Re8 {[%emt 0:00:17]} 9. f3 {[%emt 0:00:45]} c6 {[%emt 0:01:04]} 10. Bf2 {[%emt 0:01:16]} d5 {[%emt 0:04:58]} 11. exd5 {[%emt 0:01:02]} cxd5 {[%emt 0:00:04]} 12. c5 {[%emt 0:00:50]} Nc6 {[%emt 0:02:04]} 13. O-O {[%emt 0:01:33]} Nh5 {[%emt 0:03:21]} 14. Qd2 {[%emt 0:08:30]} Re5 {[%emt 0:15:35]} 15. Rae1 {[%emt 0:14:36]} Qg5 {[%emt 0:18:23]} 16. Qxg5 {[%emt 0:12:54]} Rxg5 {[%emt 0:03:48]} 17. h4 {[%emt 0:04:41]} Re5 {[%emt 0:02:38]} 18. Ndb5 {[%emt 0:05:31]} d4 {[%emt 0:08:04]} 19. Nxd4 {[%emt 0:04:24]} Nf4 {[%emt 0:00:24]} 20. Nxc6 {[%emt 0:01:53]} bxc6 {[%emt 0:00:20]} 21. Bc4 {[%emt 0:01:22]} Rxe1 {[%emt 0:03:47]} 22. Rxe1 {[%emt 0:00:27]} Be6 {[%emt 0:00:03]} 23. Bxe6 {[%emt 0:04:18]} Nxe6 {[%emt 0:00:20]} 24. Rc1 {[%emt 0:02:11]} Rd8 {[%emt 0:00:35]} 25. b4 {[%emt 0:05:11]} Nf4 {[%emt 0:00:27]} 26. Rd1 {[%emt 0:03:05]} Rd3 {[%emt 0:02:29]} 27. Be1 {[%emt 0:04:22]} a6 {[%emt 0:15:29]} 28. Kf1 {[%emt 0:01:32]} Kf8 {[%emt 0:01:51]} 29. Rxd3 {[%emt 0:01:28]} Nxd3 {[%emt 0:00:02]} 30. Nd1 {[%emt 0:00:36]} Ke7 {[%emt 0:01:44]} 31. Bd2 {[%emt 0:00:36]} Ke6 {[%emt 0:01:11]} 32. Ke2 {[%emt 0:00:32]} Ne5 {[%emt 0:00:19]} 33. Bc3 {[%emt 0:01:30]} Bh6 {[%emt 0:01:30]} 34. g3 {[%emt 0:02:38]} f5 {[%emt 0:03:08]} 1-0

[Event "Czech Open-E Teams 2022"]
[Site "Pardubice"]
[Date "2022.07.17"]
[Round "7.8"]
[White "Mondrzycki, Bartlomiej"]
[Black "Pisk, Petr"]
[Result "0-1"]
[ECO "A46"]
[WhiteElo "2180"]
[BlackElo "2329"]
[Annotator "ChessBase"]
[PlyCount "82"]
[EventDate "2022.07.14"]
[EventType "team-tourn"]
[EventCountry "CZE"]
[SourceTitle "playchess.com"]
[Source "ChessBase"]
[SourceQuality "1"]
[TimeControl "5400+30"]

1. d4 {[%emt 0:04:40]} Nf6 {[%emt 0:02:28]} 2. Nf3 {[%emt 0:00:18]} e6 {[%emt 0:01:24]} 3. Bg5 {[%emt 0:00:05]} c5 {[%emt 0:00:17]} 4. e3 {[%emt 0:03:15]} h6 {[%emt 0:02:13]} 5. Bh4 {[%emt 0:00:16]} cxd4 {[%emt 0:01:12]} 6. exd4 {[%emt 0:00:09]} b6 {[%emt 0:00:37]} 7. Nbd2 {[%emt 0:03:45]} Be7 {[%emt 0:01:08]} 8. c3 {[%emt 0:17:23]} O-O {[%emt 0:02:09]} 9. Bxf6 {[%emt 0:00:44]} Bxf6 {[%emt 0:00:38]} 10. Bd3 {[%emt 0:00:03]} Ba6 {[%emt 0:05:39]} 11. Qe2 {[%emt 0:11:05]} Bxd3 {[%emt 0:20:24]} 12. Qxd3 {[%emt 0:00:11]} d5 {[%emt 0:00:10]} 13. O-O-O {[%emt 0:12:29]} Nc6 {[%emt 0:01:59]} 14. Kb1 {[%emt 0:08:47]} Rb8 {[%emt 0:04:45]} 15. h4 {[%emt 0:00:07]} g6 {[%emt 0:01:00]} 16. h5 {[%emt 0:02:42]} g5 {[%emt 0:00:42]} 17. Rhe1 {[%emt 0:02:00]} Qc7 {[%emt 0:04:13]} 18. Qe3 {[%emt 0:02:57]} b5 {[%emt 0:01:10]} 19. Ne5 {[%emt 0:00:47]} b4 {[%emt 0:01:45]} 20. c4 {[%emt 0:06:55]} dxc4 {[%emt 0:03:21]} 21. Ndxc4 {[%emt 0:00:04]} Ne7 {[%emt 0:04:34]} 22. Qd3 {[%emt 0:05:46]} Nd5 {[%emt 0:03:48]} 23. Rc1 {[%emt 0:02:24]} Rfc8 {[%emt 0:07:29]} 24. Nd2 {[%emt 0:08:20]} Qb7 {[%emt 0:11:54]} 25. Ne4 {[%emt 0:03:55]} Rxc1+ {[%emt 0:14:36]} 26. Rxc1 {[%emt 0:00:02]} Bxe5 {[%emt 0:01:24]} 27. dxe5 {[%emt 0:00:03]} Qb6 {[%emt 0:01:09]} 28. Ka1 {[%emt 0:02:20]} a5 {[%emt 0:01:14]} 29. f4 {[%emt 0:01:36]} gxf4 {[%emt 0:00:41]} 30. Nf6+ {[%emt 0:01:32]} Nxf6 {[%emt 0:00:36]} 31. exf6 {[%emt 0:00:02]} Qe3 {[%emt 0:00:29]} 32. Qf1 {[%emt 0:01:07]} Qe5 {[%emt 0:00:11]} 33. Rc4 {[%emt 0:00:31]} Rd8 {[%emt 0:00:21]} 34. g3 {[%emt 0:00:35]} f3 {[%emt 0:00:51]} 35. Rg4+ {[%emt 0:00:27]} Kh8 {[%emt 0:00:36]} 36. Qc1 {[%emt 0:00:24]} Qe3 {[%emt 0:00:42]} 37. Qb1 {[%emt 0:00:39]} f2 {[%emt 0:00:26]} 38. Rg7 {[%emt 0:00:22]} Qe1 {[%emt 0:00:36]} 39. Rh7+ {[%emt 0:00:29]} Kg8 {[%emt 0:00:03]} 40. Rg7+ {[%emt 0:00:06]} Kf8 {[%emt 0:00:16]} 41. Rh7 {[%emt 0:00:03]} Qxb1+ {[%emt 0:00:20]} 0-1